[Event "Bremer Silvester Open-A 2024"]
[Site "Bremen"]
[Date "2024.12.29"]
[Round "5.1"]
[White "Wachinger, Nikolas"]
[Black "Kramer, Julian"]
[Result "1/2-1/2"]
[ECO "D85"]
[WhiteElo "2441"]
[BlackElo "2480"]
[Annotator "TA"]
[PlyCount "59"]
[EventDate "2024.12.16"]
[EventType "swiss"]
[EventCountry "GER"]
[SourceTitle "playchess.com"]
[Source "ChessBase"]
[SourceQuality "1"]
[TimeControl "5400+30"]

{[%evp 16,59,12,13,10,17,19,0,0,0,0,0,0,0,0,0,0,0,0,-10,-9,0,-4,-19,-9,-14,0,0,0,0,0,0,0,0,0,0,0,0,0,0,0,0,17,0,0,0]} 1. d4 {[%emt 0:00:04]} Nf6 {[%emt 0:00:07]} 2. c4 {[%emt 0:00:10]} g6 {[%emt 0:00:05]} 3. Nc3 {[%emt 0:00:09]} d5 {[%emt 0:00:05]} 4. cxd5 {[%emt 0:00:06]} Nxd5 {[%emt 0:00:04]} 5. Na4 {[%emt 0:00:14]} Bg7 {[%emt 0:04:04]} 6. e4 {[%emt 0:00:29]} Nb6 {[%emt 0:00:03]} 7. Be3 {[%emt 0:00:09]} O-O {[%emt 0:01:04]} 8. Nf3 {[%emt 0:00:09]} Nxa4 {[%emt 0:04:13]} 9. Qxa4 {[%emt 0:02:27]} c5 {[%emt 0:00:14]} 10. Rd1 {[%emt 0:00:09]} Bd7 {[%emt 0:06:54]} 11. Qa3 {[%emt 0:00:26]} cxd4 {[%emt 0:04:21]} 12. Nxd4 {[%emt 0:00:30]} Qc8 {[%emt 0:01:21]} 13. Be2 {[%emt 0:11:00]} Nc6 {[%emt 0:01:30]} 14. O-O {[%emt 0:02:09]} Nxd4 {[%emt 0:10:43]} 15. Bxd4 {[%emt 0:00:10]} Bxd4 {[%emt 0:00:08]} 16. Rxd4 {[%emt 0:00:07]} Be6 {[%emt 0:00:18]} 17. e5 {[%emt 0:17:38][%cal Od4h4]} Rd8 {[%emt 0:08:36]} 18. Rxd8+ {[%emt 0:07:56]} Qxd8 {[%emt 0:00:04]} 19. Bf3 {[%emt 0:07:18]} Qc7 {[%emt 0:06:14][%cal Oa7a5]} 20. b3 {[%emt 0:04:24]} a5 {[%emt 0:00:42][%cal Oa8c8]} 21. Rc1 {[%emt 0:08:39]} Qxe5 {[%emt 0:00:40]} 22. Qxe7 {[%emt 0:01:48]} Qb2 {[%emt 0:12:40][%csl LRa2,LRc1]} 23. Re1 {[%emt 0:00:27]} Qd2 {[%emt 0:01:43]} 24. Rxe6 {[%emt 0:07:25]} fxe6 {[%emt 0:00:05]} 25. Qxe6+ $11 {[%emt 0:00:07] KQR-KQB} Kg7 {[%emt 0:00:31]} 26. Qe7+ $1 {[%emt 0:00:37]} Kh6 {[%emt 0:01:17]} 27. Qh4+ {[%emt 0:00:25]} Kg7 {[%emt 0:00:03][%cal Rd2e1]} 28. Qe7+ {[%emt 0:00:06]} Kh6 {[%emt 0:00:16] ( -> ...Qc1+)} 29. Qh4+ {[%emt 0:00:07][%mdl 1024] White has compensation.} Kg7 {[%emt 0:00:02][%cal Rd2e1]} 30. Qe7+ {[%emt 0:00:07]} 1/2-1/2

[Event "Bremer Silvester Open-A 2024"]
[Site "Bremen"]
[Date "2024.12.29"]
[Round "5.2"]
[White "Steffens, Olaf"]
[Black "Hedke, Fred"]
[Result "1-0"]
[ECO "A01"]
[WhiteElo "2169"]
[BlackElo "2171"]
[Annotator "RC"]
[PlyCount "57"]
[EventDate "2024.12.16"]
[EventType "swiss"]
[EventCountry "GER"]
[SourceTitle "playchess.com"]
[Source "ChessBase"]
[SourceQuality "1"]
[TimeControl "5400+30"]

1. b3 {[%emt 0:03:24]} e5 {[%emt 0:02:06]} 2. Bb2 {[%emt 0:00:13]} Nc6 {[%emt 0:01:00]} 3. e3 {[%emt 0:00:38]} Nf6 {[%emt 0:01:29]} 4. a3 {[%emt 0:02:38]} a6 {[%emt 0:09:00]} 5. c4 {[%emt 0:03:56]} Be7 {[%emt 0:02:48]} 6. Qc2 {[%emt 0:04:33]} d6 {[%emt 0:03:38]} 7. Nf3 {[%emt 0:01:21]} Bg4 {[%emt 0:09:43]} 8. Be2 {[%emt 0:01:57]} O-O {[%emt 0:01:37]} 9. d3 {[%emt 0:02:28]} Re8 {[%emt 0:10:18]} 10. Nbd2 {[%emt 0:00:16]} d5 {[%emt 0:03:24]} 11. h3 {[%emt 0:13:51]} Bxf3 {[%emt 0:04:28]} 12. Nxf3 {[%emt 0:00:29]} d4 {[%emt 0:03:02]} 13. e4 {[%emt 0:06:58]} a5 {[%emt 0:01:52]} 14. g3 {[%emt 0:02:20]} Nd7 {[%emt 0:00:51]} 15. Kf1 {[%emt 0:02:49]} Nc5 {[%emt 0:01:36]} 16. Kg2 {[%emt 0:00:38]} Qd7 {[%emt 0:04:07]} 17. Nd2 {[%emt 0:04:07]} Bg5 {[%emt 0:06:43]} 18. Bc1 {[%emt 0:01:52]} f5 {[%emt 0:05:03]} 19. exf5 {[%emt 0:06:16]} Bxd2 {[%emt 0:07:22]} 20. Bxd2 {[%emt 0:00:22]} Qxf5 {[%emt 0:00:22]} 21. b4 {[%emt 0:03:48]} Rf8 {[%emt 0:04:04]} 22. f3 {[%emt 0:00:30]} axb4 {[%emt 0:03:16]} 23. axb4 {[%emt 0:00:23]} Rxa1 {[%emt 0:00:31]} 24. Rxa1 {[%emt 0:00:05]} Ne6 {[%emt 0:00:31]} 25. c5 {[%emt 0:14:37]} Ne7 {[%emt 0:02:58]} 26. Qc4 {[%emt 0:00:49]} c6 {[%emt 0:01:13]} 27. f4 {[%emt 0:03:35]} Nd5 {[%emt 0:00:34]} 28. Bg4 {[%emt 0:00:34]} Qf7 {[%emt 0:01:00]} 29. Re1 {[%emt 0:01:09]} 1-0

[Event "Bremer Silvester Open-A 2024"]
[Site "Bremen"]
[Date "2024.12.29"]
[Round "5.3"]
[White "Donath, Johann"]
[Black "Reuker, Jari"]
[Result "0-1"]
[ECO "B85"]
[WhiteElo "2100"]
[BlackElo "2408"]
[Annotator "TA"]
[PlyCount "112"]
[EventDate "2024.12.16"]
[EventType "swiss"]
[EventCountry "GER"]
[SourceTitle "playchess.com"]
[Source "ChessBase"]
[SourceQuality "1"]
[TimeControl "5400+30"]

{[%evp 22,112,0,0,5,12,10,-12,-2,-10,-7,-6,-6,-14,2,-8,0,0,0,-10,-17,-8,-6,-10,-8,-8,-14,-13,-13,-71,-15,-24,-29,-37,0,0,0,0,8,0,0,0,0,0,0,0,0,0,0,0,0,-32,-13,-102,-79,-68,-70,-78,0,-283,-309,-329,-331,-312,-311,-471,-460,-550,-540,-487,-444,-440,-451,-646,-610,-872,-886,-830,-819,-1051,-958,-29964,-29960,-29968,-29970,-29976,-29977,-29982,-29976,-29981,-29982,-29986,-29987]} 1. e4 {[%emt 0:00:06]} c5 {[%emt 0:00:29]} 2. Nf3 {[%emt 0:00:14]} e6 {[%emt 0:00:07]} 3. d4 {[%emt 0:00:26]} cxd4 {[%emt 0:00:06]} 4. Nxd4 {[%emt 0:00:05]} Nc6 {[%emt 0:00:20]} 5. Nc3 {[%emt 0:00:12]} Qc7 {[%emt 0:00:08]} 6. Be3 {[%emt 0:00:08]} a6 {[%emt 0:00:06]} 7. Be2 {[%emt 0:00:32]} Nf6 {[%emt 0:00:52]} 8. O-O {[%emt 0:00:46]} Be7 {[%emt 0:00:15]} 9. f4 {[%emt 0:01:54]} d6 {[%emt 0:00:06]} 10. Qe1 {[%emt 0:00:24]} O-O {[%emt 0:00:22]} 11. Rd1 {[%emt 0:00:21]} Nxd4 {[%emt 0:06:06]} 12. Bxd4 {[%emt 0:00:24]} b5 {[%emt 0:00:58]} 13. e5 {[%emt 0:12:24]} dxe5 {[%emt 0:05:53]} 14. Bxe5 {[%emt 0:03:59]} Qb6+ {[%emt 0:00:51]} 15. Bd4 {[%emt 0:01:09]} Bc5 {[%emt 0:00:39]} 16. Qf2 {[%emt 0:00:39]} Bxd4 {[%emt 0:00:26]} 17. Qxd4 {[%emt 0:00:08]} Rb8 {[%emt 0:03:54]} 18. Bf3 {[%emt 0:03:18]} a5 {[%emt 0:20:36]} 19. Qxb6 {[%emt 0:20:57]} Rxb6 {[%emt 0:00:11]} 20. g4 {[%emt 0:00:17]} b4 {[%emt 0:15:23]} 21. Na4 {[%emt 0:01:05]} Rb5 {[%emt 0:02:42]} 22. Bc6 {[%emt 0:04:30] [#]} Ba6 $1 {[%emt 0:01:30][%cal Of6g4]} 23. Rfe1 {[%emt 0:02:25]} (23. Bxb5 Bxb5 24. g5 Bxf1 (24... Bxa4 25. gxf6 Bxc2 26. fxg7 $16) 25. Rxf1 Nd5 $17) 23... Rbb8 {[%emt 0:01:01]} 24. g5 {[%emt 0:17:31]} Nh5 {[%emt 0:01:04]} 25. Rd4 {[%emt 0:00:34]} (25. Re5 $11) 25... Bb5 {[%emt 0:00:43]} ({Black should play} 25... Rfc8 $17 26. Bf3 g6) 26. Bxb5 $11 {[%emt 0:00:32]} Rxb5 {[%emt 0:00:03]} 27. Re5 {[%emt 0:02:20]} Rxe5 {[%emt 0:19:46]} (27... Nxf4 $5 28. Rxb5 Ne2+ 29. Kf2 Nxd4 30. Rxa5 f6 $15 (30... Nxc2 31. Rc5 $17)) 28. fxe5 $15 {[%emt 0:00:05][%mdl 4096] Endgame KRN-KRN} h6 {[%emt 0:00:32]} 29. gxh6 {[%emt 0:00:58]} gxh6 {[%emt 0:00:07]} 30. c4 {[%emt 0:04:35]} bxc3 {[%emt 0:00:17]} 31. Nxc3 {[%emt 0:02:11]} Rc8 {[%emt 0:00:35]} 32. Kf2 {[%emt 0:11:15]} (32. Rh4 $5 Ng7 $8 33. Rxh6 $15) 32... Kh7 {[%emt 0:06:51]} 33. Kf3 {[%emt 0:10:36]} Rc5 {[%emt 0:02:01]} 34. Ke4 {[%emt 0:00:00]} Ng7 {[%emt 0:01:29]} 35. Rd7 {[%emt 0:00:00]} Kg6 {[%emt 0:00:12]} 36. Kd4 {[%emt 0:00:00]} Rc8 {[%emt 0:00:27]} 37. Rb7 {[%emt 0:00:00]} (37. b3 $11) 37... Nf5+ $17 {[%emt 0:00:07]} 38. Kd3 {[%emt 0:00:00]} Rd8+ {[%emt 0:00:44]} 39. Kc4 {[%emt 0:00:00]} Rd2 {[%emt 0:00:13]} (39... Nd4 $17) 40. Kb3 $2 {[%emt 0:00:29][%mdl 8192]} (40. h3 $11 {and White stays safe.}) 40... Rxh2 $19 {[%emt 0:04:25]} 41. Ra7 {[%emt 0:00:08]} Nd4+ {[%emt 0:01:08]} 42. Ka3 {[%emt 0:00:50]} Nc6 {[%emt 0:00:52][%csl LRa7,LRe5]} 43. Rc7 {[%emt 0:00:46]} (43. Ra6 $142 Nxe5 44. Na4) 43... Nxe5 {[%emt 0:00:09]} 44. b4 {[%emt 0:00:09]} axb4+ {[%emt 0:00:12]} 45. Kxb4 {[%emt 0:00:05]} Rb2+ {[%emt 0:01:37]} 46. Kc5 {[%emt 0:00:08]} h5 {[%emt 0:01:42]} 47. Kd4 {[%emt 0:00:04]} (47. Rc8 $142 Nd7+ 48. Kd4) 47... Kf5 {[%emt 0:01:37]} 48. a3 {[%emt 0:00:24]} h4 {[%emt 0:00:41]} 49. Ne4 {[%emt 0:00:07]} Kf4 {[%emt 0:01:11]} 50. Nc5 {[%emt 0:01:38]} h3 {[%emt 0:00:59] White must now prevent ...h2.} 51. Nd3+ {[%emt 0:00:18]} Nxd3 {[%emt 0:00:06]} 52. Rxf7+ {[%emt 0:00:04]} Kg3 {[%emt 0:00:09]} 53. Kxd3 {[%emt 0:00:04]} h2 {[%emt 0:00:47]} 54. Rh7 {[%emt 0:01:19]} Ra2 {[%emt 0:00:49]} 55. Ke3 {[%emt 0:01:03]} Rxa3+ {[%emt 0:00:09]} 56. Ke2 {[%emt 0:00:05]} Kg2 {[%emt 0:00:08]} 0-1

[Event "Bremer Silvester Open-A 2024"]
[Site "Bremen"]
[Date "2024.12.29"]
[Round "5.4"]
[White "Pahl, Theis"]
[Black "Gressmann, Moritz"]
[Result "1/2-1/2"]
[ECO "A30"]
[WhiteElo "2136"]
[BlackElo "2122"]
[Annotator "RC"]
[PlyCount "120"]
[EventDate "2024.12.16"]
[EventType "swiss"]
[EventCountry "GER"]
[SourceTitle "playchess.com"]
[Source "ChessBase"]
[SourceQuality "1"]
[TimeControl "5400+30"]

1. c4 {[%emt 0:00:03]} Nf6 {[%emt 0:00:06]} 2. e3 {[%emt 0:00:26]} e6 {[%emt 0:00:12]} 3. Nf3 {[%emt 0:00:28]} b6 {[%emt 0:00:55]} 4. b3 {[%emt 0:01:24]} Bb7 {[%emt 0:00:07]} 5. Bb2 {[%emt 0:00:24]} Be7 {[%emt 0:00:20]} 6. Be2 {[%emt 0:00:19]} O-O {[%emt 0:00:07]} 7. O-O {[%emt 0:00:29]} d5 {[%emt 0:00:12]} 8. cxd5 {[%emt 0:00:33]} Nxd5 {[%emt 0:01:07]} 9. Nc3 {[%emt 0:02:44]} c5 {[%emt 0:03:43]} 10. Rc1 {[%emt 0:02:55]} Nc6 {[%emt 0:01:40]} 11. Qc2 {[%emt 0:01:56]} Bf6 {[%emt 0:02:25]} 12. Rfd1 {[%emt 0:09:24]} Rc8 {[%emt 0:02:36]} 13. a3 {[%emt 0:07:16]} Nxc3 {[%emt 0:02:09]} 14. dxc3 {[%emt 0:01:16]} Qe7 {[%emt 0:02:33]} 15. Nd2 {[%emt 0:01:25]} Rfd8 {[%emt 0:03:18]} 16. Ne4 {[%emt 0:03:13]} Be5 {[%emt 0:02:47]} 17. f4 {[%emt 0:01:02]} Bb8 {[%emt 0:01:59]} 18. Rf1 {[%emt 0:13:52]} f6 {[%emt 0:03:56]} 19. Bd3 {[%emt 0:07:44]} c4 {[%emt 0:01:43]} 20. Bxc4 {[%emt 0:17:35]} Na5 {[%emt 0:00:10]} 21. Bd3 {[%emt 0:00:29]} Nxb3 {[%emt 0:00:49]} 22. Rcd1 {[%emt 0:00:21]} Na5 {[%emt 0:01:25]} 23. Nd2 {[%emt 0:02:05]} f5 {[%emt 0:03:21]} 24. e4 {[%emt 0:04:24]} e5 {[%emt 0:05:17]} 25. Rfe1 {[%emt 0:04:39]} exf4 {[%emt 0:06:43]} 26. exf5 {[%emt 0:00:17]} Qc5+ {[%emt 0:06:12]} 27. Kh1 {[%emt 0:00:02]} Qf2 {[%emt 0:03:18]} 28. Nf3 {[%emt 0:02:59]} Qxc2 {[%emt 0:02:31]} 29. Bxc2 {[%emt 0:00:03]} Bxf3 {[%emt 0:03:30]} 30. gxf3 {[%emt 0:00:01]} Rxd1 {[%emt 0:00:58]} 31. Rxd1 {[%emt 0:01:27]} Be5 {[%emt 0:06:07]} 32. Be4 {[%emt 0:01:25]} Nc4 {[%emt 0:04:43]} 33. Bc1 {[%emt 0:00:29]} Ne3 {[%emt 0:02:56]} 34. Rd3 {[%emt 0:01:32]} Rxc3 {[%emt 0:02:21]} 35. Rxc3 {[%emt 0:03:13]} Bxc3 {[%emt 0:02:05]} 36. Kg1 {[%emt 0:00:14]} Bd4 {[%emt 0:01:53]} 37. Bxe3 {[%emt 0:00:20]} fxe3 {[%emt 0:00:08]} 38. Kf1 {[%emt 0:00:05]} b5 {[%emt 0:04:11]} 39. Ke2 {[%emt 0:00:17]} a5 {[%emt 0:00:53]} 40. f4 {[%emt 0:09:14]} Kf7 {[%emt 0:02:10]} 41. Bc2 {[%emt 0:00:06]} Kf6 {[%emt 0:00:42]} 42. h3 {[%emt 0:00:11]} Bc5 {[%emt 0:01:40]} 43. Kf3 {[%emt 0:01:34]} h6 {[%emt 0:02:44]} 44. Bd3 {[%emt 0:00:51]} b4 {[%emt 0:01:04]} 45. axb4 {[%emt 0:00:09]} axb4 {[%emt 0:00:07]} 46. Bc2 {[%emt 0:00:03]} Ke7 {[%emt 0:00:45]} 47. Bb3 {[%emt 0:00:24]} Kd6 {[%emt 0:00:09]} 48. Ke2 {[%emt 0:00:18]} Kc6 {[%emt 0:00:43]} 49. Kd3 {[%emt 0:00:23]} Kb5 {[%emt 0:00:24]} 50. Ke2 {[%emt 0:00:30]} Bd4 {[%emt 0:00:18]} 51. Kd3 {[%emt 0:00:13]} Kc5 {[%emt 0:00:35]} 52. Bf7 {[%emt 0:00:59]} Kd6 {[%emt 0:00:18]} 53. Bb3 {[%emt 0:00:15]} Ke7 {[%emt 0:00:18]} 54. Ke2 {[%emt 0:00:50]} Bb6 {[%emt 0:00:34]} 55. Kf3 {[%emt 0:00:21]} Kd6 {[%emt 0:00:53]} 56. Ke2 {[%emt 0:00:18]} Ba7 {[%emt 0:00:21]} 57. Kf3 {[%emt 0:00:56]} Ke7 {[%emt 0:00:55]} 58. Ke2 {[%emt 0:00:51]} Kf6 {[%emt 0:00:06]} 59. Bc2 {[%emt 0:00:04]} h5 {[%emt 0:00:11]} 60. Kf3 {[%emt 0:00:15]} Bc5 {[%emt 0:00:05]} 1/2-1/2

[Event "Bremer Silvester Open-A 2024"]
[Site "Bremen"]
[Date "2024.12.29"]
[Round "5.5"]
[White "Beeck, Mats"]
[Black "Kieselbach, Marvin"]
[Result "1-0"]
[ECO "E01"]
[WhiteElo "2241"]
[BlackElo "2008"]
[Annotator "RC"]
[PlyCount "59"]
[EventDate "2024.12.16"]
[EventType "swiss"]
[EventCountry "GER"]
[SourceTitle "playchess.com"]
[Source "ChessBase"]
[SourceQuality "1"]
[TimeControl "5400+30"]

1. Nf3 {[%emt 0:00:04]} Nf6 {[%emt 0:01:17]} 2. g3 {[%emt 0:00:12]} e6 {[%emt 0:01:15]} 3. Bg2 {[%emt 0:01:46]} d5 {[%emt 0:00:20]} 4. O-O {[%emt 0:00:08]} c5 {[%emt 0:01:46]} 5. c4 {[%emt 0:02:01]} Nc6 {[%emt 0:04:10]} 6. cxd5 {[%emt 0:00:17]} Nxd5 {[%emt 0:01:02]} 7. d4 {[%emt 0:01:20]} cxd4 {[%emt 0:00:35]} 8. Nxd4 {[%emt 0:00:07]} Be7 {[%emt 0:00:12]} 9. Nxc6 {[%emt 0:00:19]} bxc6 {[%emt 0:00:05]} 10. Qc2 {[%emt 0:03:39]} Bd7 {[%emt 0:04:39]} 11. a3 {[%emt 0:07:39]} O-O {[%emt 0:01:35]} 12. Nd2 {[%emt 0:03:49]} Rc8 {[%emt 0:04:00]} 13. Nc4 {[%emt 0:00:32]} Qc7 {[%emt 0:00:58]} 14. e4 {[%emt 0:00:32]} Nb6 {[%emt 0:01:22]} 15. Bf4 {[%emt 0:02:02]} Qb7 {[%emt 0:00:11]} 16. Nd6 {[%emt 0:00:27]} Bxd6 {[%emt 0:00:06]} 17. Bxd6 {[%emt 0:00:11]} Rfd8 {[%emt 0:00:49]} 18. b4 {[%emt 0:04:22]} c5 {[%emt 0:23:34]} 19. bxc5 {[%emt 0:01:53]} Bc6 {[%emt 0:08:00]} 20. Qe2 {[%emt 0:03:05]} Na4 {[%emt 0:01:31]} 21. Rfc1 {[%emt 0:07:29]} Bb5 {[%emt 0:11:36]} 22. Qg4 {[%emt 0:04:21]} Kh8 {[%emt 0:05:53]} 23. Rab1 {[%emt 0:05:35]} Qa6 {[%emt 0:00:07]} 24. e5 {[%emt 0:03:18]} Bd3 {[%emt 0:06:28]} 25. Rb4 {[%emt 0:03:02]} Nxc5 {[%emt 0:05:41]} 26. Bxc5 {[%emt 0:04:48]} Be2 {[%emt 0:02:08]} 27. Qg5 {[%emt 0:02:23]} Qa5 {[%emt 0:03:53]} 28. Bd6 {[%emt 0:01:38]} f6 {[%emt 0:05:09]} 29. Rxc8 {[%emt 0:01:19]} Rxc8 {[%emt 0:00:57]} 30. Qe3 {[%emt 0:01:30]} 1-0

[Event "Bremer Silvester Open-A 2024"]
[Site "Bremen"]
[Date "2024.12.29"]
[Round "5.6"]
[White "Kreutz, Jonas"]
[Black "Pahl, Erik"]
[Result "0-1"]
[ECO "C54"]
[WhiteElo "2009"]
[BlackElo "2166"]
[Annotator "ChessBase"]
[PlyCount "48"]
[EventDate "2024.12.16"]
[EventType "swiss"]
[EventCountry "GER"]
[SourceTitle "playchess.com"]
[Source "ChessBase"]
[SourceQuality "1"]
[TimeControl "5400+30"]

1. e4 {[%emt 0:01:47]} e5 {[%emt 0:00:12]} 2. Nf3 {[%emt 0:00:08]} Nc6 {[%emt 0:00:05]} 3. Bc4 {[%emt 0:00:08]} Nf6 {[%emt 0:00:10]} 4. d3 {[%emt 0:00:30]} Bc5 {[%emt 0:01:55]} 5. O-O {[%emt 0:00:46]} d6 {[%emt 0:00:06]} 6. c3 {[%emt 0:00:20]} a6 {[%emt 0:01:40]} 7. a4 {[%emt 0:00:34]} Ba7 {[%emt 0:00:12]} 8. Nbd2 {[%emt 0:03:12]} O-O {[%emt 0:00:34]} 9. h3 {[%emt 0:00:26]} Ne7 {[%emt 0:02:10]} 10. Re1 {[%emt 0:05:42]} Ng6 {[%emt 0:05:07]} 11. Nf1 {[%emt 0:01:21]} c6 {[%emt 0:01:00]} 12. d4 {[%emt 0:21:35]} Re8 {[%emt 0:16:44]} 13. Bd3 {[%emt 0:04:57]} d5 {[%emt 0:12:25]} 14. dxe5 {[%emt 0:06:03]} Nxe4 {[%emt 0:00:55]} 15. Bxe4 {[%emt 0:03:18]} dxe4 {[%emt 0:00:31]} 16. Qxd8 {[%emt 0:00:20]} Rxd8 {[%emt 0:00:05]} 17. Bg5 {[%emt 0:02:58]} f6 {[%emt 0:03:16]} 18. exf6 {[%emt 0:00:40]} gxf6 {[%emt 0:00:38]} 19. Bxf6 {[%emt 0:02:04]} Rf8 {[%emt 0:00:17]} 20. Rxe4 {[%emt 0:00:31]} Rxf6 {[%emt 0:00:19]} 21. Ng3 {[%emt 0:00:43]} Bxh3 {[%emt 0:01:39]} 22. Kh2 {[%emt 0:01:51]} Bf5 {[%emt 0:04:58]} 23. Re2 {[%emt 0:01:12]} Bg4 {[%emt 0:01:02]} 24. Ne4 {[%emt 0:01:16]} Rff8 {[%emt 0:01:22]} 0-1

[Event "Bremer Silvester Open-A 2024"]
[Site "Bremen"]
[Date "2024.12.29"]
[Round "5.7"]
[White "Loechner, Mark"]
[Black "Storm, Max"]
[Result "1/2-1/2"]
[ECO "D11"]
[WhiteElo "1813"]
[BlackElo "2053"]
[Annotator "NA RC"]
[PlyCount "121"]
[EventDate "2024.12.16"]
[EventType "swiss"]
[EventCountry "GER"]
[SourceTitle "playchess.com"]
[Source "ChessBase"]
[SourceQuality "1"]
[TimeControl "5400+30"]

1. Nf3 {[%emt 0:00:06]} Nf6 {[%emt 0:00:07]} 2. g3 {[%emt 0:00:04]} d5 {[%emt 0:00:08]} 3. Bg2 {[%emt 0:00:03]} Bf5 {[%emt 0:01:01]} 4. c4 {[%emt 0:00:19]} c6 {[%emt 0:02:23]} 5. O-O {[%emt 0:05:34]} e6 {[%emt 0:01:18]} 6. d4 {[%emt 0:00:58]} Be7 {[%emt 0:03:15]} 7. Re1 {[%emt 0:05:44]} Ne4 {[%emt 0:10:12]} 8. Nc3 {[%emt 0:02:12]} Nd7 {[%emt 0:02:09]} 9. Nd2 {[%emt 0:01:11]} Nxd2 {[%emt 0:06:11]} 10. Qxd2 {[%emt 0:00:55]} Nf6 {[%emt 0:02:24]} 11. e4 {[%emt 0:02:59]} dxe4 {[%emt 0:01:13]} 12. Nxe4 {[%emt 0:00:12]} O-O {[%emt 0:00:45]} 13. b3 {[%emt 0:02:41]} Qb6 {[%emt 0:01:56]} 14. Bb2 {[%emt 0:02:03]} Rfd8 {[%emt 0:02:00]} 15. Qf4 {[%emt 0:08:29]} Bxe4 {[%emt 0:02:56]} 16. Bxe4 {[%emt 0:01:22]} Nxe4 {[%emt 0:00:10]} 17. Rxe4 {[%emt 0:02:19]} Bf6 {[%emt 0:01:02]} 18. Rd1 {[%emt 0:13:20]} Rd7 {[%emt 0:00:18]} 19. Re2 {[%emt 0:12:50]} Rad8 {[%emt 0:02:04]} 20. Red2 {[%emt 0:00:47]} Qa5 {[%emt 0:17:47]} 21. Qe3 {[%emt 0:02:52]} h6 {[%emt 0:03:46]} 22. Kg2 {[%emt 0:05:04]} Qb6 {[%emt 0:04:10]} 23. h4 {[%emt 0:04:18]} a6 {[%emt 0:02:16]} 24. Kg1 {[%emt 0:26:08]} Qc7 {[%emt 0:03:27]} 25. a4 {[%emt 0:00:00]} Qd6 {[%emt 0:02:57]} 26. Bc3 {[%emt 0:00:00]} Qe7 {[%emt 0:02:37]} 27. Ba5 {[%emt 0:01:30]} Re8 {[%emt 0:01:43]} 28. Bb6 {[%emt 0:00:00]} Rc8 {[%emt 0:05:21]} 29. Rd3 {[%emt 0:00:00]} Qe8 {[%emt 0:01:12]} 30. Kg2 {[%emt 0:00:00]} Bd8 {[%emt 0:01:34]} 31. Bxd8 {[%emt 0:00:00]} Rcxd8 {[%emt 0:01:12]} 32. f4 {[%emt 0:00:00]} Rd6 {[%emt 0:00:31]} 33. c5 {[%emt 0:00:00]} Rd5 {[%emt 0:00:27]} 34. b4 {[%emt 0:00:00]} Qd7 {[%emt 0:00:26]} 35. Kf2 {[%emt 0:00:00]} Qe7 {[%emt 0:01:16]} 36. a5 {[%emt 0:00:00]} Qf6 {[%emt 0:00:40]} 37. Ke2 {[%emt 0:00:00]} Qf5 {[%emt 0:00:46]} 38. Qf3 {[%emt 0:00:00]} h5 {[%emt 0:03:38]} 39. Ke3 {[%emt 0:00:00]} Kh7 {[%emt 0:01:17]} 40. Qe4 {[%emt 0:00:00]} Kg6 {[%emt 0:00:53]} 41. Rg1 {[%emt 0:00:00]} f6 {[%emt 0:00:56]} 42. Re1 {[%emt 0:03:37]} e5 {[%emt 0:02:15]} 43. fxe5 {[%emt 0:03:34]} fxe5 {[%emt 0:02:15]} 44. Qxf5+ {[%emt 0:00:32]} Kxf5 {[%emt 0:00:07]} 45. Rf1+ {[%emt 0:00:38]} Ke6 {[%emt 0:00:19]} 46. Rfd1 {[%emt 0:00:33]} Rxd4 {[%emt 0:02:45]} 47. Rxd4 {[%emt 0:00:01]} Rxd4 {[%emt 0:00:26]} 48. Rxd4 {[%emt 0:00:15]} exd4+ {[%emt 0:00:06]} 49. Kxd4 {[%emt 0:00:04]} Kf5 {[%emt 0:00:30]} 50. Ke3 {[%emt 0:00:06]} Kg4 {[%emt 0:03:34]} 51. Kf2 {[%emt 0:00:12]} g5 {[%emt 0:00:50]} 52. hxg5 {[%emt 0:00:35]} Kxg5 {[%emt 0:00:04]} 53. Ke3 {[%emt 0:01:09]} Kg4 {[%emt 0:01:02]} 54. Kf2 {[%emt 0:00:24]} Kf5 {[%emt 0:01:26]} 55. Kf3 {[%emt 0:00:32]} Ke5 {[%emt 0:01:01]} 56. Ke3 {[%emt 0:00:19]} Kf5 {[%emt 0:00:25]} 57. Kf3 {[%emt 0:00:21]} Kg5 {[%emt 0:00:15]} 58. Ke3 {[%emt 0:00:26]} Kg4 {[%emt 0:00:35]} 59. Kf2 {[%emt 0:00:11]} Kf5 {[%emt 0:01:03]} 60. Ke3 {[%emt 0:03:01]} Ke5 61. Kf2 {[%emt 0:00:30]} 1/2-1/2